Cogmind - Beta 10.2 @@@ ROGUE MODE // 2020.12.03 @ 18:22:57 Player: kerapace Result: Destroyed by Tracker with Linked Autogun Performance ------------- Evolutions (9) 4500 Regions Visited (28) 5600 Robots Destroyed (184) 920 Value Destroyed (7730) 7730 Prototype IDs (227) 4540 Alien Tech Used (6) 1200 Bonus (14722) 14722 TOTAL SCORE: 39212 Bonus ------- Triggered High Security 500 High Alert Combat Kills 3277 Follower Combat Kills 422 Met Data Miner 300 Used Data Conduit 3000 Met Zhirov 300 Found Hidden Lab 3000 Decrypted A0 Command 3000 Pursued by Intercept 1000 Friendly Fire -77 Cogmind --------- Core Integrity 0/1600 Matter 109/300 Energy 100/100 System Corruption 10% Temperature Cool (0) Movement Core (50) Location -1/Access Parts ------- > --- POWER (2) -------- (None) > --- PROPULSION (6) --- (None) > --- UTILITY (15) ----- (None) > --- WEAPON (2) ------- (None) > --- INVENTORY (4) ---- AEGIS Remote Shield Core Stripper Peak State ------------ > --- POWER ------------ Quantum Reactor Quantum Reactor > --- PROPULSION ------- Armored Heavy Treads Armored Heavy Treads Biometal Heavy Treads > --- UTILITY ---------- Improved Fusion Compressor Coolant Network Large Storage Unit Large Storage Unit Advanced Energy Well Experimental Optical Array Advanced Signal Interpreter Experimental Transmission Jammer Improved Utility Shielding Improved Medium Armor Plating AEGIS Remote Shield System Mapper Ghost Barrier Quantum Router > --- WEAPON ----------- Core Stripper > --- INVENTORY -------- Light Quantum Reactor Medium Storage Unit Quantum Capacitor Improved Medium Armor Plating Potential Cannon Linked Autogun [Rating: 202] Favorites ----------- Power Light Fission Core Engine Ion Engine Power Core Light Fission Core Reactor Light Quantum Reactor Propulsion Improved VTOL Module Treads Light Treads Wheel Compact Wheel Flight Unit Improved VTOL Module Utility Medium Storage Unit Device Long-range Sensor Array Storage Medium Storage Unit Processor Advanced Signal Interpreter Hackware System Mapper Protection Powered Armor Artifact Stasis Generator Weapon Autogun Energy Gun Small Laser Energy Cannon Advanced Beam Cannon Ballistic Gun Autogun Ballistic Cannon Perforator Launcher Smartbomb Launcher Special Weapon Guided Remote Datajack Impact Weapon Core Stripper Slashing Weapon Katana Piercing Weapon Kinetic Spear Build | -11 -10 -10 -10 -9 -8 -7 -7 -7 -6 -6 -6 -6 -6 -6 -5 -5 -5 -5 -5 -4 -4 -4 -4 -3 -3 -2 -2 -1 ------- Run | Scr Mat Min Exi Min Mat Fac Was Fac Fac Was Fac Low Low Dat Pro Fac Upp Upp Zhi Pro Fac Arm Lab Res Tes Res Qua Acc Slots Evolved 18 | . . . . . 4 2 . . 2 . . . . . . 2 . . . . 2 . . 2 . 2 . 2 Power 1 | . . . . . . . . . . . . . . . . 1 . . . . . . . . . . . . Propulsion 4 | . . . . . 1 . . . 1 . . . . . . 1 . . . . . . . . . 1 . . Utility 13 | . . . . . 3 2 . . 1 . . . . . . . . . . . 2 . . 2 . 1 . 2 Weapon . | . . . . . . . . . . . . . . . . . . . . . . . . . . . . . Parts Attached 283 | 6 8 . . 3 42 20 . 11 4 5 12 15 7 1 5 9 2 4 7 1 4 5 13 13 7 17 24 38 Power 21 | 1 1 . . . 4 1 . 2 . . 1 . . . . 1 . . 2 . . 1 . . . 2 2 3 Engine 6 | 1 1 . . . 4 . . . . . . . . . . . . . . . . . . . . . . . Core 9 | . . . . . . 1 . 2 . . 1 . . . . 1 . . 1 . . 1 . . . 2 . . Reactor 6 | . . . . . . . . . . . . . . . . . . . 1 . . . . . . . 2 3 Propulsion 53 | 2 3 . . . 14 3 . 2 1 . 4 . 2 . 2 2 . . 3 . 1 . 1 4 . 3 6 . Treads 15 | 1 2 . . . 8 . . . . . . . . . . . . . . . . . . . . . 4 . Leg . | . . . . . . . . . . . . . . . . . . . . . . . . . . . . . Wheel 6 | 1 1 . . . 4 . . . . . . . . . . . . . . . . . . . . . . . Hover . | . . . . . . . . . . . . . . . . . . . . . . . . . . . . . Flight 32 | . . . . . 2 3 . 2 1 . 4 . 2 . 2 2 . . 3 . 1 . 1 4 . 3 2 . Utility 95 | 1 2 . . . 10 15 . 4 3 5 6 6 1 1 1 2 1 1 2 1 3 2 6 6 3 1 4 8 Device 50 | . . . . . 3 7 . 3 1 4 5 6 1 . 1 . 1 1 2 1 1 1 4 3 2 1 . 2 Storage 11 | 1 2 . . . 2 1 . . . 1 . . . . . . . . . . . . . 1 . . . 3 Processor 3 | . . . . . 1 1 . . . . . . . . . . . . . . . 1 . . . . . . Hackware 9 | . . . . . . 3 . 1 . . . . . 1 . 1 . . . . 1 . 1 . 1 . . . Protection 21 | . . . . . 4 3 . . 2 . 1 . . . . 1 . . . . 1 . 1 2 . . 3 3 Artifact 1 | . . . . . . . . . . . . . . . . . . . . . . . . . . . 1 . Weapon 114 | 2 2 . . 3 14 1 . 3 . . 1 9 4 . 2 4 1 3 . . . 2 6 3 4 11 12 27 Energy Gun 11 | 1 1 . . . 5 . . . . . . . . . . . . . . . . . 3 1 . . . . Energy Cannon 41 | . . . . . 3 . . . . . . . 2 . 1 4 . 1 . . . . 2 2 2 6 7 11 Ballistic Gun 23 | 1 1 . . 3 3 . . . . . . . . . . . . . . . . . . . . . 3 12 Ballistic Cannon 1 | . . . . . . . . . . . . . . . . . . . . . . . . . 1 . . . Launcher 11 | . . . . . 3 . . . . . . 5 . . . . . 1 . . . . . . 1 1 . . Special Weapon 1 | . . . . . . . . . . . . . . . . . . . . . . . 1 . . . . . Impact Weapon 4 | . . . . . . . . . . . . . . . . . . . . . . . . . . . . 4 Slashing Weapon 16 | . . . . . . 1 . 3 . . 1 4 2 . 1 . 1 1 . . . 2 . . . . . . Piercing Weapon 6 | . . . . . . . . . . . . . . . . . . . . . . . . . . 4 2 . Special Melee Weapon . | . . . . . . . . . . . . . . . . . . . . . . . . . . . . . Unidentified Prototypes 23 | . . . . . 7 . . . . . . . . 1 . 1 . . 1 . 1 1 6 1 1 . 2 1 Parts Lost 45 | . 2 . . 1 7 . . 3 . . . . . 1 1 . . . . . 1 . 6 8 . . 1 14 Power 6 | . . . . . . . . 1 . . . . . 1 . . . . . . . . 1 1 . . . 2 Propulsion 11 | . . . . . 3 . . 1 . . . . . . . . . . . . . . 2 2 . . . 3 Utility 19 | . . . . . 2 . . 1 . . . . . . . . . . . . 1 . 2 5 . . 1 7 Weapon 9 | . 2 . . 1 2 . . . . . . . . . 1 . . . . . . . 1 . . . . 2 Highest Loss Streak 12 | . 1 . . 1 2 . . 3 . . . . . 1 1 . . . . . 1 . 6 7 . . 1 12 Average Slot Usage (%) 86 | . 94 100 100 99 97 84 84 79 80 93 86 86 86 86 79 77 85 87 88 88 79 80 69 75 72 80 83 71 Engine 4 | . 14 14 14 14 9 . . . . . . . . . . . . . . . . . . . . 5 . . Core 2 | . . . . . . 6 7 6 6 6 6 6 6 6 . 4 5 5 1 . . 4 . . . 2 5 . Reactor 1 | . . . . . . . . . . . . . . . . . . . 4 5 5 5 5 3 . . 2 6 Treads 6 | . 14 14 14 14 15 . . . . . . . . . . . . . . . . . . . . . 5 11 Wheel 4 | . 14 14 14 14 10 . . . . . . . . . . . . . . . . . . . . . . . Flight 10 | . . . . . . 22 23 22 20 26 20 20 20 20 20 22 23 23 23 23 21 21 16 17 14 13 10 . Device 9 | . . . . . 15 15 7 8 13 13 6 6 6 6 13 9 5 5 5 5 5 7 2 8 11 15 13 14 Storage 14 | . 22 28 28 28 18 7 7 7 6 11 13 13 13 13 13 11 11 11 11 11 10 10 10 9 9 8 8 10 Processor 4 | . . . . . 1 7 7 7 6 6 6 6 6 6 6 5 5 5 5 5 5 9 10 9 9 8 8 7 Hackware 10 | . . . . . . 14 23 22 20 20 20 20 20 20 13 12 17 17 17 17 16 15 16 18 17 17 15 10 Protection 4 | . . . . . 8 . . . . 1 5 6 6 6 6 5 5 5 5 5 5 . . 3 4 4 7 6 Energy Gun 2 | . 14 14 14 . 1 . . . . . . . . . . . . . . . . . . . . . . . Energy Cannon 2 | . . . . . 10 . . . . . . . . . . 2 5 4 5 5 5 1 2 2 3 . 1 1 Ballistic Gun 4 | . 14 14 14 27 5 . . . . . . . . . . . . . . . . . . . . . 1 1 Slashing Weapon 1 | . . . . . . 6 7 3 6 6 6 5 5 6 5 . 2 4 5 5 5 5 1 . . . . . Naked Turns 43 | . . . . . . . . . . . . . . . . . . . . . . . . . . . . 43 Heaviest Build 135 | 13 24 23 23 27 52 32 18 19 28 30 40 40 40 40 42 56 51 51 51 49 49 50 45 52 62 65 104 135 Greatest Support 195 | 20 20 10 10 20 40 27 18 19 34 34 40 40 40 40 42 51 51 51 51 51 51 51 51 65 65 76 195 195 Greatest Overweight (x) 3 | 1 2 2 2 2 3 1 . 3 . . . . . . . 1 . . . . . . . . . . 1 1 Average Overweight (x) . | . 1 2 2 1 1 . . . . . . . . . . . . . . . . . . . . . . . Largest Inventory Capacity 16 | 6 12 12 12 12 16 16 8 8 8 12 12 12 12 12 12 12 12 12 12 12 12 12 12 12 8 8 8 16 Average Capacity 11 | 5 9 12 12 12 14 8 8 8 8 11 12 12 12 12 12 12 12 12 12 12 12 12 12 12 8 8 8 13 Most Carried 16 | 4 12 12 12 12 16 16 8 8 8 12 12 12 12 12 12 12 12 12 12 12 12 12 12 12 8 8 8 11 Average Carried 10 | 2 7 11 11 12 13 7 8 7 7 11 11 11 11 11 11 11 12 11 11 12 11 11 10 11 7 7 7 6 Final Capacity 16 | 6 12 12 12 12 16 8 8 8 8 12 12 12 12 12 12 12 12 12 12 12 12 12 12 8 8 8 8 4 Final Carried 16 | 4 12 12 12 12 16 8 8 7 7 12 12 12 12 12 12 12 12 12 12 12 12 11 12 8 7 8 8 3 Class Distribution -------------------- 32% | Hacker-Sprinter 20% | Mutant 15% | Scavenger-Mutant 14% | Wizard-Sprinter 12% | Wizard-Mutant Dominant Class ---------------- Mutant | -10/Materials Mutant | -10/Mines Mutant | -10/Exiles Mutant | -9/Mines Scavenger-Mutant | -8/Materials Hacker-Sprinter | -7/Factory Hacker-Sprinter | -7/Waste Hacker-Sprinter | -7/Factory Hacker-Sprinter | -6/Factory Hacker-Sprinter | -6/Waste Hacker-Sprinter | -6/Factory Hacker-Sprinter | -6/Lower Caves Hacker-Sprinter | -6/Lower Caves Hacker-Sprinter | -6/Data Miner Hacker-Sprinter | -5/Proximity Caves Hacker-Mutant | -5/Factory Hacker-Sprinter | -5/Upper Caves Hacker-Sprinter | -5/Upper Caves Hacker-Sprinter | -5/Zhirov Hacker-Sprinter | -4/Proximity Caves Wizard-Sprinter | -4/Factory Wizard-Scout | -4/Armory Wizard-Scout | -4/Lab Wizard-Sprinter | -3/Research Wizard-Sprinter | -3/Testing Wizard-Sprinter | -2/Research Wizard-Mutant | -2/Quarantine Wizard-Mutant | -1/Access Resources | -11 -10 -10 -10 -9 -8 -7 -7 -7 -6 -6 -6 -6 -6 -6 -5 -5 -5 -5 -5 -4 -4 -4 -4 -3 -3 -2 -2 -1 ----------- Run | Scr Mat Min Exi Min Mat Fac Was Fac Fac Was Fac Low Low Dat Pro Fac Upp Upp Zhi Pro Fac Arm Lab Res Tes Res Qua Acc Matter Collected 5714 | 239 395 74 . 153 705 176 . 52 27 231 21 266 32 21 97 184 130 29 118 32 . . . 180 272 483 518 1279 Remotely . | . . . . . . . . . . . . . . . . . . . . . . . . . . . . . Salvage Created 8578 | . 538 56 . 201 1704 176 . . 27 . 21 245 . 21 37 134 77 34 253 . . . . 265 181 650 908 3050 Parts 327 | . 32 1 . 11 89 8 . . 2 . 3 19 . 3 5 5 1 3 5 . . . . 3 4 32 19 82 Haulers Intercepted 16 | . 2 . . . 6 . . . . . . . . . . . . . . . . . . . 1 2 2 3 Recyclers Shooed 5 | . . . . 2 1 . . . . . . . . . . . . . . . . . . . . . . 2 Parts Field Recycled . | . . . . . . . . . . . . . . . . . . . . . . . . . . . . . Retrieved Matter . | . . . . . . . . . . . . . . . . . . . . . . . . . . . . . Parts Self-Destructed 28 | . . . . . . . . . . . . 17 . . 5 . . 2 4 . . . . . . . . . Prevented . | . . . . . . . . . . . . . . . . . . . . . . . . . . . . . Kills | -11 -10 -10 -10 -9 -8 -7 -7 -7 -6 -6 -6 -6 -6 -6 -5 -5 -5 -5 -5 -4 -4 -4 -4 -3 -3 -2 -2 -1 ------- Run | Scr Mat Min Exi Min Mat Fac Was Fac Fac Was Fac Low Low Dat Pro Fac Upp Upp Zhi Pro Fac Arm Lab Res Tes Res Qua Acc Combat Hostiles Destroyed 128 | . 12 . . 7 22 1 . . . . . 12 . . . . . 5 . . . . . 1 4 10 12 42 Melee 8 | . . . . . . 1 . . . . . 4 . . . . . 1 . . . . . . . 2 . . Guns 43 | . 12 . . 7 6 . . . . . . . . . . . . . . . . . . . . . 1 17 Cannons 24 | . . . . . 10 . . . . . . . . . . . . . . . . . . . . 3 6 5 AOE 47 | . . . . . 6 . . . . . . 8 . . . . . 4 . . . . . . 4 4 5 16 Classes Destroyed 18 | . 4 1 . 1 5 1 . . 1 . . . . . 1 . . . . . . . . . 1 . 1 2 Worker 12 | . . . . . . . . . 1 . . . . . . 1 . . . . . . . 1 . 1 1 7 Builder 3 | . . . . . . . . . . . . . . . . . . . . . . . . . . . . 3 Tunneler 2 | . . . . . 2 . . . . . . . . . . . . . . . . . . . . . . . Hauler 16 | . 2 . . . 6 . . . . . . . . . . . . . . . . . . . 1 2 2 3 Recycler 12 | . . 1 . . 3 1 . . . . . . . . . 1 . . . . . . . 1 . . . 5 Minesweeper 1 | . . . . . . . . . . . . . . . 1 . . . . . . . . . . . . . Mechanic 1 | . . . . . . . . . . . . . . . . . . . . . . . . . . . 1 . Operator 4 | . 1 . . . 1 . . . . . 1 . . . . . . . . . . . . . . 1 . . Watcher 4 | . . . . . 1 2 . . . . . . . . . . . . . . . . . . . . . 1 Swarmer 39 | . 2 . . 3 1 . . . . . . 10 . . . . . 5 . . . . . . 3 5 . 10 Saboteur 1 | . . . . . . . . . . . . . . . . . . . . . . . . . . . . 1 Grunt 46 | . 10 . . 3 10 . . . . . . 2 . . . . . . . . . . . 1 . 1 4 15 Brawler 6 | . . . . . 2 . . . . . . . . . . . . . . . . . . . . . 1 3 Duelist 7 | . . . . . 3 . . . . . . . . . . . . . . . . . . . . . 1 3 Protector 3 | . . . . 1 . . . . . . . . . . . . . . . . . . . . . . . 2 Sentry 6 | . . . . . 6 . . . . . . . . . . . . . . . . . . . . . . . Hunter 5 | . . . . . . . . . . . . . . . . . . . . . . . . . 1 . 2 2 Programmer 10 | . . . . . . 1 . . . . . . . . . . . . . . . . . . . 4 . 5 Tracker 3 | . . . . . . . . . . . . . . . . . . . . . . . . . . . 2 1 Combat Programmer 2 | . . . . . . . . . . . . . . . . . . . . . . . . . . . 2 . Decomposer 3 | . . . . . . . . . . . . . . . . . 3 . . . . . . . . . . . Best Kill Streak 13 | . 4 1 . 4 6 1 . . 1 . 1 3 . 1 1 2 . 5 . . . . . 1 5 4 6 13 Combat Bots Only 11 | . 3 . . 4 6 1 . . . . . 3 . . . . . 5 . . . . . 1 4 4 4 11 Max Kills in Single Turn 4 | . 1 1 . 1 2 1 . . 1 . 1 3 . 1 1 1 1 3 . . . . . 1 2 3 4 3 Gunslinging . | . . . . . . . . . . . . . . . . . . . . . . . . . . . . . Exploded 3 | . . . . . 2 . . . . . . 3 . . . . . 3 . . . . . . 2 2 2 3 Melee 1 | . . . . . . 1 . . . . . 1 . . . . . 1 . . . . . . . 1 . . Uniques/NPCs Destroyed 1 | . . . . . . . . . . . . . . 1 . . . . . . . . . . . . . . Data Miner (-6/Data Miner) Combat | -11 -10 -10 -10 -9 -8 -7 -7 -7 -6 -6 -6 -6 -6 -6 -5 -5 -5 -5 -5 -4 -4 -4 -4 -3 -3 -2 -2 -1 -------- Run | Scr Mat Min Exi Min Mat Fac Was Fac Fac Was Fac Low Low Dat Pro Fac Upp Upp Zhi Pro Fac Arm Lab Res Tes Res Qua Acc Damage Taken 12787 | . 622 8 . 187 1230 229 . 154 58 . 63 331 78 141 133 24 . . . . 187 28 1056 996 243 420 569 6030 Core 2411 | . 96 . . 20 76 . . 22 20 . 11 54 . . 19 . . . . . 52 . 206 159 34 . 33 1609 Absorbed by Shields 3555 | . . . . . . . . . . . . . . . . . . . . . . . . . 122 399 550 2484 Core Remaining (%) 86 | 100 . . . 53 86 . . 96 . . . . . . 87 . . . . 100 . . 70 . 89 . 97 . Volleys Fired 417 | . 61 1 . 23 75 . . . . . . 9 5 . 2 14 4 2 . . 11 3 9 19 21 11 23 124 Largest 2 | . 2 2 . 2 2 . . . . . . 1 1 . 1 1 1 1 . . 1 1 1 1 1 1 1 1 Hottest 240 | . 70 60 . 60 136 . . . . . . 36 90 . 90 90 90 46 . . 90 90 240 240 200 200 200 200 Shots Fired 572 | . 120 2 . 44 149 . . . . . . 9 5 . 2 14 4 2 . . 11 3 9 19 21 11 23 124 Gun 360 | . 120 2 . 44 81 . . . . . . . . . . . . . . . . . 6 4 . . 7 96 Cannon 191 | . . . . . 62 . . . . . . . 5 . 2 14 4 . . . 11 3 2 15 19 10 16 28 Launcher 20 | . . . . . 6 . . . . . . 9 . . . . . 2 . . . . . . 2 1 . . Special 1 | . . . . . . . . . . . . . . . . . . . . . . . 1 . . . . . Kinetic 268 | . 61 1 . 38 65 . . . . . . . . . . . . . . . . . . . . . 7 96 Thermal 229 | . 59 1 . 6 62 . . . . . . . 5 . 2 14 4 . . . 11 3 6 4 2 6 16 28 Explosive 16 | . . . . . 3 . . . . . . 8 . . . . . 2 . . . . . . 2 1 . . Electromagnetic 58 | . . . . . 19 . . . . . . 1 . . . . . . . . . . 2 15 17 4 . . Robot Hit Streak 29 | . 8 5 . 7 10 . . . . . . . . . . 5 5 . . . . . 7 3 4 9 18 29 Robot Miss Streak 7 | . 7 . . 5 4 . . . . . . 5 . . . 1 . . . . . . 1 3 . 1 1 2 Penetration Max . | . . . . . . . . . . . . . . . . . . . . . . . . . . . . . Secondary Targets 6 | . 2 . . 2 2 . . . . . . . . . . . . . . . . . . . . . . . Max Gunslinging Chain 1 | . 1 . . 1 1 . . . . . . . . . . . . . . . . . . . . . . . Shots Hit Robots 404 | . 76 2 . 21 92 17 . . 2 . 4 7 . 1 1 8 3 1 6 . 1 . 9 6 3 12 17 115 Core Hits 291 | . 29 2 . 14 64 4 . . 1 . 1 17 . . 1 3 3 6 3 . . . 1 2 6 13 20 101 Critical Hits 31 | . . . . . 6 1 . . . . . . . . . 2 . . . . . . . . . 3 7 12 Critical Kills 11 | . . . . . 1 . . . . . . . . . . 1 . . . . . . . . . 2 3 4 Critical Parts Destroyed 17 | . . . . . 5 1 . . . . . . . . . 1 . . . . . . . . . 1 1 8 Melee Attacks 138 | . . . . . . 33 . 5 5 . 19 17 2 5 3 . 1 1 6 . 3 5 12 . . 16 1 4 Kinetic 4 | . . . . . . . . . . . . . . . . . . . . . . . . . . . . 4 Impact . | . . . . . . . . . . . . . . . . . . . . . . . . . . . . . Slashing 117 | . . . . . . 33 . 5 5 . 19 17 2 5 3 . 1 1 6 . 3 5 12 . . . . . Piercing 17 | . . . . . . . . . . . . . . . . . . . . . . . . . . 16 1 . Sneak Attacks 9 | . . . . . . 2 . . 1 . . . . 1 1 . 1 . . . . . . . . 2 . 1 Combat Hostiles 1 | . . . . . . . . . . . . . . . . . . . . . . . . . . . . 1 Follow-up Attacks . | . . . . . . . . . . . . . . . . . . . . . . . . . . . . . Damage Inflicted 30273 | . 873 20 . 396 2546 740 . . 131 . 239 949 . 192 190 285 231 608 798 . 48 . 675 394 1159 1964 3976 13859 Guns 6799 | . 873 20 . 396 926 . . . . . . . . . . . . . . . . . 145 . . . 309 4130 Cannons 7551 | . . . . . 802 . . . . . . . . . . 285 65 . . . . . . 394 134 766 1960 3145 Explosions 11696 | . . . . . 818 . . . . . . 524 . . . . . 556 . . . . . . 1025 560 1690 6523 Melee 4184 | . . . . . . 740 . . 131 . 239 425 . 192 190 . 166 52 798 . 48 . 530 . . 638 . 35 Ramming 43 | . . . . . . . . . . . . . . . . . . . . . . . . . . . 17 26 Kinetic 5951 | . 428 10 . 363 676 . . . . . . . . . . . . . . . . . . . . . 309 4165 Thermal 16886 | . 445 10 . 33 846 . . . . . . . . . . 285 65 . . . . . 145 . 538 1201 3650 9668 Explosive 1854 | . . . . . 287 . . . . . . 524 . . . . . 556 . . . . . . 487 . . . Electromagnetic 1390 | . . . . . 737 . . . . . . . . . . . . . . . . . . 394 134 125 . . Impact . | . . . . . . . . . . . . . . . . . . . . . . . . . . . . . Slashing 3511 | . . . . . . 740 . . 131 . 239 425 . 192 190 . 166 52 798 . 48 . 530 . . . . . Piercing 638 | . . . . . . . . . . . . . . . . . . . . . . . . . . 638 . . Highest Corruption 13 | . . . . . 1 1 11 13 . . . 1 1 1 1 . . . . . . . 9 1 1 5 5 10 Average Corruption 2 | . . . . . 1 1 3 12 . . . 1 1 1 1 . . . . . . . 7 1 1 4 5 2 Corruption Purged . | . . . . . . . . . . . . . . . . . . . . . . . . . . . . . Effects 70 | . . . . . 7 . . 20 . . . 1 . 1 2 . . . . . . . 7 . 1 3 18 10 Message Errors 20 | . . . . . 3 . . 2 . . . . . 1 2 . . . . . . . 1 . 1 2 5 3 Matter Fused 10 | . . . . . . . . 3 . . . . . . . . . . . . . . . . . . 6 1 Heat Flow Errors 5 | . . . . . . . . 3 . . . . . . . . . . . . . . 1 . . 1 . . Energy Discharges 7 | . . . . . 1 . . 1 . . . . . . . . . . . . . . 1 . . . 3 1 Data Loss (minor) 8 | . . . . . 3 . . 2 . . . . . . . . . . . . . . 1 . . . 2 . Data Loss (major) 2 | . . . . . . . . 1 . . . . . . . . . . . . . . 1 . . . . . Alerts 1 | . . . . . . . . 1 . . . . . . . . . . . . . . . . . . . . Misdirections 7 | . . . . . . . . 6 . . . . . . . . . . . . . . . . . . . 1 Targeting Errors 10 | . . . . . . . . 1 . . . 1 . . . . . . . . . . 2 . . . 2 4 Overload Shots 8 | . . . . . . . . . . . . . . . . . . . . . . . 4 4 . . . . Effects 1 | . . . . . . . . . . . . . . . . . . . . . . . . 1 . . . . Energy Bleed 1 | . . . . . . . . . . . . . . . . . . . . . . . . 1 . . . . Overflow Damage 2666 | . . . . . 15 74 . . 53 . 70 56 . 182 . . . 74 245 . . . 61 49 182 76 218 1311 Projectiles 410 | . . . . . . . . . . . . . . . . . . . . . . . . 49 . 29 128 204 Explosions 1496 | . . . . . 15 . . . . . . 11 . . . . . 74 . . . . . . 182 17 90 1107 Melee 760 | . . . . . . 74 . . 53 . 70 45 . 182 . . . . 245 . . . 61 . . 30 . . Knockbacks 1 | . . . . . . . . . . . . . . . . . . . . . . . . . . . . 1 Impact 1 | . . . . . . . . . . . . . . . . . . . . . . . . . . . . 1 Kinetic . | . . . . . . . . . . . . . . . . . . . . . . . . . . . . . Secondary . | . . . . . . . . . . . . . . . . . . . . . . . . . . . . . Self-Inflicted Damage 171 | . . . . . 36 . . . . . . 27 . . . . . . . . . . . . 36 . . 72 Shots 5 | . . . . . 2 . . . . . . 1 . . . . . . . . . . . . 1 . . 1 Rammed 8 | . . . . . . . . . . . . . . . . . . . . . . . . . . . 2 6 Targets Rammed 8 | . . . . . . . . . . . . . . . . . . . . . . . . . . . 2 6 Kicked . | . . . . . . . . . . . . . . . . . . . . . . . . . . . . . Crushed . | . . . . . . . . . . . . . . . . . . . . . . . . . . . . . Highest Temperature 621 | . 153 20 . 40 93 . . 190 . 34 2 9 216 . 109 218 54 4 . . 56 20 621 108 156 195 45 . Average Temperature 53 | . 52 15 . 11 23 . . 81 . 15 2 3 89 . 36 79 27 2 . . 23 10 254 58 74 59 19 . Received Heat Transfer 1594 | . 273 . . 27 387 . . . 9 . 18 36 36 18 45 . . . . . 45 . . 147 4 16 56 477 Effects 10 | . . . . . . . . . . . . . . . . 1 . . . . . . 9 . . . . . Shutdowns 1 | . . . . . . . . . . . . . . . . . . . . . . . 1 . . . . . Interference 3 | . . . . . . . . . . . . . . . . 1 . . . . . . 2 . . . . . Damage (major) 5 | . . . . . . . . . . . . . . . . . . . . . . . 5 . . . . . Damage (core) 1 | . . . . . . . . . . . . . . . . . . . . . . . 1 . . . . . Siege Activations 1 | . . . . . . . . . . . . . . . . . . . . . . . . . . . 1 . Total Turns 24 | . . . . . . . . . . . . . . . . . . . . . . . . . . . 24 . Longest Duration 24 | . . . . . . . . . . . . . . . . . . . . . . . . . . . 24 . Robots Corrupted 3 | . . . . . . . . . . . . . . . . . . . . . . . . 2 . 1 . . Combat Hostiles 2 | . . . . . . . . . . . . . . . . . . . . . . . . 1 . 1 . . Parts Fried 12 | . . . . . 1 . . . . . . . . . . . . . . . . . . 7 2 2 . . Impact Corruptions . | . . . . . . . . . . . . . . . . . . . . . . . . . . . . . Robots Melted 2 | . . . . . . . . . . . . . . . . . . . . . . . . . . . . 2 Combat Hostiles 2 | . . . . . . . . . . . . . . . . . . . . . . . . . . . . 2 Parts Melted 15 | . . . . . 5 . . . . . . . . . . . . . . . . . . . . 2 2 6 Heat Transferred 15730 | . 1095 25 . 75 1396 . . . . . . . . . . 400 74 . . . . . 125 . 720 790 2280 8750 Parts Sabotaged 1 | . . . . . . . . . . . . . . . . . . . . . . . . . . . . 1 Parts Stolen . | . . . . . . . . . . . . . . . . . . . . . . . . . . . . . Parts Stripped . | . . . . . . . . . . . . . . . . . . . . . . . . . . . . . Power Chain Reactions 1 | . . . . . 1 . . . . . . . . . . . . . . . . . . . . . . . Missiles Intercepted . | . . . . . . . . . . . . . . . . . . . . . . . . . . . . . Alert | -11 -10 -10 -10 -9 -8 -7 -7 -7 -6 -6 -6 -6 -6 -6 -5 -5 -5 -5 -5 -4 -4 -4 -4 -3 -3 -2 -2 -1 ------- Run | Scr Mat Min Exi Min Mat Fac Was Fac Fac Was Fac Low Low Dat Pro Fac Upp Upp Zhi Pro Fac Arm Lab Res Tes Res Qua Acc Peak Influence 2068 | . 268 52 . 175 592 256 62 467 236 82 215 . . . . 108 . . . . 112 166 . 272 609 1209 1149 2068 Initial 688 | . . 47 . . . 251 17 43 228 82 57 . . . . . . . . . . 49 . . 147 342 679 688 Average 403 | . 138 50 . 111 357 145 44 206 233 82 122 . . . . 40 . . . . 35 128 . 52 272 667 948 1392 Maximum Alert Level 5 | . 1 . . . 2 1 . 2 1 . 1 . . . . . . . . . . . . 1 2 4 4 5 Low Security (%) 46 | 100 83 100 . 100 10 76 100 62 . 100 90 . . . . 100 . . . . 100 100 . 96 23 . . . Level 1 19 | . 16 . . . 50 23 . . 100 . 9 . . . . . . . . . . . . 3 62 2 . . Level 2 15 | . . . . . 38 . . 37 . . . . . . . . . . . . . . . . 13 54 12 6 Level 3 9 | . . . . . . . . . . . . . . . . . . . . . . . . . . 35 77 18 Level 4 5 | . . . . . . . . . . . . . . . . . . . . . . . . . . 7 10 42 Level 5 1 | . . . . . . . . . . . . . . . . . . . . . . . . . . . . 13 High Security 2 | . . . . . . . . . . . . . . . . . . . . . . . . . . . . 19 Max Security . | . . . . . . . . . . . . . . . . . . . . . . . . . . . . . Squads Dispatched 35 | . 4 . . 1 4 1 . . . . 2 . . . . 1 . . . . . . . 1 4 1 4 12 Investigation 3 | . . . . . 2 . . . . . . . . . . 1 . . . . . . . . . . . . Extermination 4 | . . . . . . 1 . . . . 1 . . . . . . . . . . . . . . 1 . 1 Reinforcement 10 | . 4 . . . 1 . . . . . 1 . . . . . . . . . . . . 1 3 . . . Assault 12 | . . . . 1 1 . . . . . . . . . . . . . . . . . . . 1 . 1 8 Garrison . | . . . . . . . . . . . . . . . . . . . . . . . . . . . . . Intercept 6 | . . . . . . . . . . . . . . . . . . . . . . . . . . . 3 3 Construction Impeded . | . . . . . . . . . . . . . . . . . . . . . . . . . . . . . Haulers Reinforced 1 | . . . . . . . . . . . . . . . . . . . . . . . . . 1 . . . Stealth | -11 -10 -10 -10 -9 -8 -7 -7 -7 -6 -6 -6 -6 -6 -6 -5 -5 -5 -5 -5 -4 -4 -4 -4 -3 -3 -2 -2 -1 --------- Run | Scr Mat Min Exi Min Mat Fac Was Fac Fac Was Fac Low Low Dat Pro Fac Upp Upp Zhi Pro Fac Arm Lab Res Tes Res Qua Acc Distress Signals 3 | . 1 . . . 1 . . . . . . . . . . . . . . . . . . . . 1 . . Communications Jammed 43 | . . . . . . . . . . . . . . . . . . . . . . . . . 2 7 4 30 Distress Signals 40 | . . . . . . . . . . . . . . . . . . . . . . . . . 2 7 3 28 Times Spotted 291 | . 22 . . 7 45 5 5 2 5 . 7 14 4 4 4 4 . 1 . . 11 4 1 30 18 18 19 61 Peak Tracking Total 14 | . 3 . . 5 8 1 5 1 4 . 3 4 4 4 4 4 . 2 . . 11 5 1 14 10 6 5 13 Tactical Retreats 13 | . . . . . . . . . . . . 1 1 . . . . . . . . 1 . 5 . 1 1 3 Traps | -11 -10 -10 -10 -9 -8 -7 -7 -7 -6 -6 -6 -6 -6 -6 -5 -5 -5 -5 -5 -4 -4 -4 -4 -3 -3 -2 -2 -1 ------- Run | Scr Mat Min Exi Min Mat Fac Was Fac Fac Was Fac Low Low Dat Pro Fac Upp Upp Zhi Pro Fac Arm Lab Res Tes Res Qua Acc Traps Triggered 15 | . 1 . . . 4 3 . 3 1 . . . . . . . . . . . 1 . . 1 . . . 1 Indirectly . | . . . . . . . . . . . . . . . . . . . . . . . . . . . . . Trap Hack Attempts . | . . . . . . . . . . . . . . . . . . . . . . . . . . . . . Triggered . | . . . . . . . . . . . . . . . . . . . . . . . . . . . . . Disarmed 12 | . . . . . . . . 6 . . . . . . . . . . . . . . . . . . 6 . Reprogrammed . | . . . . . . . . . . . . . . . . . . . . . . . . . . . . . Reused . | . . . . . . . . . . . . . . . . . . . . . . . . . . . . . Traps Extracted . | . . . . . . . . . . . . . . . . . . . . . . . . . . . . . Installed . | . . . . . . . . . . . . . . . . . . . . . . . . . . . . . Triggered . | . . . . . . . . . . . . . . . . . . . . . . . . . . . . . Machines | -11 -10 -10 -10 -9 -8 -7 -7 -7 -6 -6 -6 -6 -6 -6 -5 -5 -5 -5 -5 -4 -4 -4 -4 -3 -3 -2 -2 -1 ---------- Run | Scr Mat Min Exi Min Mat Fac Was Fac Fac Was Fac Low Low Dat Pro Fac Upp Upp Zhi Pro Fac Arm Lab Res Tes Res Qua Acc Machines Disabled 21 | . . . . . 2 . . . . . 1 . . . . . . . . . . . 1 . 5 3 4 5 Max in Single Turn 2 | . . . . . 1 . . . . . 1 . . . . . . . . . . . 1 . 1 1 2 2 Garrison Access 4 | . . . . . . . . . . . 2 . . . . . . . . . . . . . 1 . 1 . Machines Sabotaged . | . . . . . . . . . . . . . . . . . . . . . . . . . . . . . Garrisons Compromised . | . . . . . . . . . . . . . . . . . . . . . . . . . . . . . Overloaded Fab Kills . | . . . . . . . . . . . . . . . . . . . . . . . . . . . . . Fab Network Shutdowns 2 | . . . . . . . . 1 . . . . . . . . . . . . . . . . . 1 . . Hacking | -11 -10 -10 -10 -9 -8 -7 -7 -7 -6 -6 -6 -6 -6 -6 -5 -5 -5 -5 -5 -4 -4 -4 -4 -3 -3 -2 -2 -1 --------- Run | Scr Mat Min Exi Min Mat Fac Was Fac Fac Was Fac Low Low Dat Pro Fac Upp Upp Zhi Pro Fac Arm Lab Res Tes Res Qua Acc Machines Accessed 71 | . 1 1 1 . 4 8 . 6 1 . 11 . . 3 . 3 3 . . . . 6 2 5 3 7 6 . Terminals 38 | . 1 . . . 2 6 . 4 . . 6 . . . . 1 1 . . . . 5 . 3 2 3 4 . Fabricators 10 | . . . . . . 1 . 1 1 . . . . . . 2 . . . . . 1 . 1 1 2 . . Repair Stations 6 | . . . . . 1 . . 1 . . 2 . . . . . . . . . . . . . . 1 1 . Recycling Units 2 | . . . . . . . . . . . . . . . . . . . . . . . . 1 . 1 . . Scanalyzers 2 | . . . . . 1 . . . . . 1 . . . . . . . . . . . . . . . . . Garrison Access 4 | . . . . . . 1 . . . . 2 . . . . . . . . . . . . . . . 1 . Total Hacks 225 | . 1 1 1 . 18 22 . 18 2 . 21 . . 23 . 7 7 . . . . 14 20 20 6 27 17 . Successful 159 | . 1 1 1 . 11 7 . 14 2 . 13 . . 23 . 4 7 . . . . 9 20 10 4 19 13 . Failed 66 | . . . . . 7 15 . 4 . . 8 . . . . 3 . . . . . 5 . 10 2 8 4 . Catastrophic 14 | . . . . . . 2 . . . . 5 . . . . 1 . . . . . . . 3 . 2 1 . Database Lockouts . | . . . . . . . . . . . . . . . . . . . . . . . . . . . . . Manual 55 | . . . . . 1 9 . 6 . . 7 . . . . 2 . . . . . 2 . 7 1 12 8 . Terminals 101 | . 1 . . . 4 16 . 12 . . 11 . . . . 1 1 . . . . 11 . 11 4 15 14 . Fabricators 32 | . . . . . . 4 . 2 2 . . . . . . 6 . . . . . 3 . 6 2 7 . . Repair Stations 19 | . . . . . 4 . . 4 . . 5 . . . . . . . . . . . . . . 4 2 . Recycling Units 4 | . . . . . . . . . . . . . . . . . . . . . . . . 3 . 1 . . Scanalyzers 12 | . . . . . 10 . . . . . 2 . . . . . . . . . . . . . . . . . Garrison Access 6 | . . . . . . 2 . . . . 3 . . . . . . . . . . . . . . . 1 . Terminal Hacks 92 | . 1 1 1 . . 4 . 7 . . 3 . . 23 . 1 7 . . . . 6 20 3 2 6 7 . Record 34 | . . . 1 . . . . . . . . . . 6 . . 6 . . . . . 20 . . 1 . . Part Schematic 17 | . . . . . . 1 . . . . . . . 10 . . . . . . . . . 1 . 3 2 . Robot Schematic 7 | . . . . . . . . . . . . . . 7 . . . . . . . . . . . . . . Robot Analysis 1 | . . . . . . . . . . . 1 . . . . . . . . . . . . . . . . . Prototype ID Bank 3 | . . . . . . . . 1 . . . . . . . . . . . . . 2 . . . . . . Open Door 5 | . . 1 . . . . . . . . . . . . . . 1 . . . . 3 . . . . . . Level Access Points 3 | . . . . . . . . . . . . . . . . . . . . . . . . 1 . 1 1 . Branch Access Points 4 | . . . . . . . . 1 . . 1 . . . . 1 . . . . . . . 1 . . . . Machine Index 1 | . . . . . . . . . . . 1 . . . . . . . . . . . . . . . . . Terminal Index 2 | . . . . . . 1 . 1 . . . . . . . . . . . . . . . . . . . . Fabricator Index 1 | . . . . . . 1 . . . . . . . . . . . . . . . . . . . . . . Repair Station Index 1 | . . . . . . . . 1 . . . . . . . . . . . . . . . . . . . . Unreport Threat 1 | . . . . . . 1 . . . . . . . . . . . . . . . . . . . . . . Disarm Traps 2 | . . . . . . . . 1 . . . . . . . . . . . . . . . . . . 1 . Reinforcement Status 1 | . . . . . . . . . . . . . . . . . . . . . . . . . . . 1 . Recall Reinforcements 1 | . . . . . . . . . . . . . . . . . . . . . . . . . 1 . . . Hauler Manifests 5 | . 1 . . . . . . 1 . . . . . . . . . . . . . 1 . . 1 . 1 . Zone Layout 3 | . . . . . . . . 1 . . . . . . . . . . . . . . . . . 1 1 . Fabricator Hacks 22 | . . . . . . 2 . 2 2 . . . . . . 2 . . . . . 2 . 4 2 6 . . Load Schematic 12 | . . . . . . 1 . 1 1 . . . . . . 2 . . . . . 1 . 2 1 3 . . Build 10 | . . . . . . 1 . 1 1 . . . . . . . . . . . . 1 . 2 1 3 . . Repair Station Hacks 15 | . . . . . 3 . . 2 . . 5 . . . . . . . . . . . . . . 3 2 . Scan Component 8 | . . . . . 2 . . 1 . . 3 . . . . . . . . . . . . . . 1 1 . Repair 5 | . . . . . 1 . . . . . 2 . . . . . . . . . . . . . . 1 1 . Refit 2 | . . . . . . . . 1 . . . . . . . . . . . . . . . . . 1 . . Recycling Unit Hacks 4 | . . . . . . . . . . . . . . . . . . . . . . . . 3 . 1 . . Process 1 | . . . . . . . . . . . . . . . . . . . . . . . . 1 . . . . Report Inventory 2 | . . . . . . . . . . . . . . . . . . . . . . . . 1 . 1 . . Retrieve Matter 1 | . . . . . . . . . . . . . . . . . . . . . . . . 1 . . . . Scanalyzer 10 | . . . . . 8 . . . . . 2 . . . . . . . . . . . . . . . . . Insert Component 4 | . . . . . 3 . . . . . 1 . . . . . . . . . . . . . . . . . Analyze 6 | . . . . . 5 . . . . . 1 . . . . . . . . . . . . . . . . . Garrison Access Hacks 3 | . . . . . . . . . . . 2 . . . . . . . . . . . . . . . 1 . Seal Access 3 | . . . . . . . . . . . 2 . . . . . . . . . . . . . . . 1 . Unauthorized Hacks 13 | . . . . . . 1 . 3 . . 1 . . . . 1 . . . . . 1 . . . 3 3 . Terminals 11 | . . . . . . 1 . 3 . . 1 . . . . . . . . . . 1 . . . 2 3 . Track 2 | . . . . . . . . 1 . . . . . . . . . . . . . 1 . . . . . . Assimilate 6 | . . . . . . 1 . 1 . . 1 . . . . . . . . . . . . . . 1 2 . Botnet 1 | . . . . . . . . 1 . . . . . . . . . . . . . . . . . . . . Disrupt 2 | . . . . . . . . . . . . . . . . . . . . . . . . . . 1 1 . Fabricators 2 | . . . . . . . . . . . . . . . . 1 . . . . . . . . . 1 . . Siphon 2 | . . . . . . . . . . . . . . . . 1 . . . . . . . . . 1 . . Repair Stations . | . . . . . . . . . . . . . . . . . . . . . . . . . . . . . Recycling Units . | . . . . . . . . . . . . . . . . . . . . . . . . . . . . . Scanalyzers . | . . . . . . . . . . . . . . . . . . . . . . . . . . . . . Garrison Access . | . . . . . . . . . . . . . . . . . . . . . . . . . . . . . Data Cores Recovered . | . . . . . . . . . . . . . . . . . . . . . . . . . . . . . Used . | . . . . . . . . . . . . . . . . . . . . . . . . . . . . . Hacking Detections 34 | . 1 . . . 3 7 . 4 . . 9 . . . . 3 . . . . . . . 2 1 2 2 . Full Trace Events 1 | . . . . . . . . . . . . . . . . 1 . . . . . . . . . . . . Feedback Events . | . . . . . . . . . . . . . . . . . . . . . . . . . . . . . Feedback Blocked . | . . . . . . . . . . . . . . . . . . . . . . . . . . . . . Robot Schematics Acquired 7 | . . . . . . . . . . . . . . 7 . . . . . . . . . . . . . . Robots Built . | . . . . . . . . . . . . . . . . . . . . . . . . . . . . . Matter . | . . . . . . . . . . . . . . . . . . . . . . . . . . . . . Time . | . . . . . . . . . . . . . . . . . . . . . . . . . . . . . Total Robot Build Rating . | . . . . . . . . . . . . . . . . . . . . . . . . . . . . . Part Schematics Acquired 21 | . . . . . 3 1 . . . . 1 . . 10 . . . . . . . . . 1 . 3 2 . Parts Built 15 | . . . . . . 2 . 2 1 . . . . . . . . . . . . 1 . 3 2 4 . . Matter 2233 | . . . . . . 168 . 190 219 . . . . . . . . . . . . 256 . 552 168 680 . . Time 992 | . . . . . . 42 . 95 116 . . . . . . . . . . . . 128 . 144 42 425 . . Total Part Build Rating 82 | . . . . . . 8 . 10 3 . . . . . . . . . . . . 8 . 16 8 29 . . Parts Repaired 5 | . . . . . 1 . . . . . 2 . . . . . . . . . . . . . . 1 1 . Time 192 | . . . . . 70 . . . . . 74 . . . . . . . . . . . . . . 34 14 . Parts Recycled . | . . . . . . . . . . . . . . . . . . . . . . . . . . . . . Recycled Matter 26 | . . . . . . . . . . . . . . . . . . . . . . . . 26 . . . . Retrieved Matter 26 | . . . . . . . . . . . . . . . . . . . . . . . . 26 . . . . Retrieved Components . | . . . . . . . . . . . . . . . . . . . . . . . . . . . . . Parts Scanalyzed 4 | . . . . . 3 . . . . . 1 . . . . . . . . . . . . . . . . . Part Schematics Acquired 4 | . . . . . 3 . . . . . 1 . . . . . . . . . . . . . . . . . Parts Damaged 1 | . . . . . 1 . . . . . . . . . . . . . . . . . . . . . . . Bothacking | -11 -10 -10 -10 -9 -8 -7 -7 -7 -6 -6 -6 -6 -6 -6 -5 -5 -5 -5 -5 -4 -4 -4 -4 -3 -3 -2 -2 -1 ------------ Run | Scr Mat Min Exi Min Mat Fac Was Fac Fac Was Fac Low Low Dat Pro Fac Upp Upp Zhi Pro Fac Arm Lab Res Tes Res Qua Acc Used RIF Installer . | . . . . . . . . . . . . . . . . . . . . . . . . . . . . . Robots Hacked 1 | . . . . . . . . . . . . . . . . . . . . . . . 1 . . . . . Non-combat . | . . . . . . . . . . . . . . . . . . . . . . . . . . . . . Combat . | . . . . . . . . . . . . . . . . . . . . . . . . . . . . . Robot Hacks Applied . | . . . . . . . . . . . . . . . . . . . . . . . . . . . . . Manual 1 | . . . . . . . . . . . . . . . . . . . . . . . 1 . . . . . Relay Couplers Released 2 | . . . . . . . . . . . . . . . . . . . . . . . . . 2 . . . Machine Destruction 2 | . . . . . . . . . . . . . . . . . . . . . . . . . 2 . . . Robots Rewired . | . . . . . . . . . . . . . . . . . . . . . . . . . . . . . Allies Hacked 1 | . . . . . . 1 . . . . . . . . . . . . . . . . . . . . . . Hacks Repelled . | . . . . . . . . . . . . . . . . . . . . . . . . . . . . . Allies | -11 -10 -10 -10 -9 -8 -7 -7 -7 -6 -6 -6 -6 -6 -6 -5 -5 -5 -5 -5 -4 -4 -4 -4 -3 -3 -2 -2 -1 -------- Run | Scr Mat Min Exi Min Mat Fac Was Fac Fac Was Fac Low Low Dat Pro Fac Upp Upp Zhi Pro Fac Arm Lab Res Tes Res Qua Acc Total Allies 9 | . . . . 3 . 1 1 1 . . . . . . . . . . . . . . . . . 1 2 . Largest Group 3 | . . . . 3 2 1 1 1 . . . . . . . . . . . . . . . . . 1 1 . Highest-Rated Group 72 | . . . . 72 62 10 31 26 . . . . . . . . . . . . . . . . . 26 26 . Highest-Rated Ally 31 | . . . . 31 31 10 31 26 . . . . . . . . . . . . . . . . . 26 26 . Total Orders . | . . . . . . . . . . . . . . . . . . . . . . . . . . . . . Ally Attacks 68 | . . . . 9 59 . . . . . . . . . . . . . . . . . . . . . . . Total Damage 982 | . . . . 143 839 . . . . . . . . . . . . . . . . . . . . . . . Kills 15 | . . . . 1 14 . . . . . . . . . . . . . . . . . . . . . . . Allies Corrupted . | . . . . . . . . . . . . . . . . . . . . . . . . . . . . . Allies Melted . | . . . . . . . . . . . . . . . . . . . . . . . . . . . . . Intel | -11 -10 -10 -10 -9 -8 -7 -7 -7 -6 -6 -6 -6 -6 -6 -5 -5 -5 -5 -5 -4 -4 -4 -4 -3 -3 -2 -2 -1 ------- Run | Scr Mat Min Exi Min Mat Fac Was Fac Fac Was Fac Low Low Dat Pro Fac Upp Upp Zhi Pro Fac Arm Lab Res Tes Res Qua Acc Robot Analysis Total 116 | . . . . . . . . . . . 1 . . 115 . . . . . . . . . . . . . . Derelict Logs Recovered 9 | . . 2 . 2 . . . . . . . 1 1 . 2 . 1 . . . . . . . . . . . Drone Launches . | . . . . . . . . . . . . . . . . . . . . . . . . . . . . . Drone Recoveries . | . . . . . . . . . . . . . . . . . . . . . . . . . . . . . Exploration | -11 -10 -10 -10 -9 -8 -7 -7 -7 -6 -6 -6 -6 -6 -6 -5 -5 -5 -5 -5 -4 -4 -4 -4 -3 -3 -2 -2 -1 ------------- Run | Scr Mat Min Exi Min Mat Fac Was Fac Fac Was Fac Low Low Dat Pro Fac Upp Upp Zhi Pro Fac Arm Lab Res Tes Res Qua Acc Turns Passed 9679 | 58 622 327 239 552 1669 525 21 329 246 130 465 406 156 61 205 195 250 63 79 138 104 204 170 339 186 541 569 830 Spaces Moved 11583 | 40 302 321 238 454 954 1000 70 647 289 374 862 793 331 101 359 290 482 169 157 403 189 216 267 412 347 554 578 384 Core 69 | 1 . . . . . . . 5 . . . . . . . . . . . . . . . . . . . 63 Treads 943 | 14 130 . . 22 279 . . . . . . . . . . . . . . . . . . . . . 177 321 Legs . | . . . . . . . . . . . . . . . . . . . . . . . . . . . . . Wheels 1863 | 25 172 321 238 432 675 . . . . . . . . . . . . . . . . . . . . . . . Hover . | . . . . . . . . . . . . . . . . . . . . . . . . . . . . . Flight 8708 | . . . . . . 1000 70 642 289 374 862 793 331 101 359 290 482 169 157 403 189 216 267 412 347 554 401 . Fastest Speed 27 | 50 90 100 100 100 100 29 29 29 27 27 27 32 30 32 32 28 29 29 29 29 29 29 29 28 32 29 31 50 Average Speed 53 | 112 129 100 100 103 135 29 29 30 29 27 30 32 31 32 32 29 29 29 29 29 29 29 31 30 32 31 70 143 Slowest Speed 200 | 160 180 100 100 180 200 99 29 200 30 27 32 32 32 32 32 103 29 29 29 29 34 29 32 32 32 32 190 170 Overloaded Moves . | . . . . . . . . . . . . . . . . . . . . . . . . . . . . . Propulsion Burnouts . | . . . . . . . . . . . . . . . . . . . . . . . . . . . . . Robots Hopped 68 | . . . . . . 24 . 2 . 1 11 . . . . 4 1 . . . 2 . 1 14 2 6 . . Cave-ins Triggered . | . . . . . . . . . . . . . . . . . . . . . . . . . . . . . Teleports 2 | . . . . . . . . . . . . . . . . . . . . . . 1 . 1 . . . . Exploration Rate (%) 47 | 3 53 76 61 95 66 22 81 21 8 96 29 73 58 77 51 10 68 33 56 64 9 14 100 17 53 17 47 14 Regions Visited 28 Branch Regions 15 Pre-discovered Areas 36 | . . . 1 . . . . . . . . . . 33 1 . 1 . . . . . . . . . . . Known Exits Taken 19 | . . . . . 1 . . 1 . . 1 1 1 1 1 1 1 1 1 1 1 1 1 1 1 1 1 . Unknown Exits Taken 5 | 1 1 1 1 1 . . . . . . . . . . . . . . . . . . . . . . . . Scrap Searched 17 | . . 2 . . . . . . . . . 2 1 . 4 . 4 2 . 2 . . . . . . . . Spaces Dug 241 | . . . . . . 5 . 4 3 . 10 28 7 . 4 4 2 . . . 13 6 . 4 17 66 15 53 Terrain Destroyed 546 | . . . . . 24 5 . 4 3 . 10 58 7 . 4 4 2 28 . . 13 6 1 4 30 74 79 190 Melee 45 | . . . . . . 5 . 4 3 . 10 8 2 . 2 . . . . . 2 5 . . . 2 1 1 Projectile 46 | . . . . . . . . . . . . . 5 . 2 4 2 . . . 11 1 1 4 2 3 3 8 AOE 455 | . . . . . 24 . . . . . . 50 . . . . . 28 . . . . . . 28 69 75 181 Terrain Rammed . | . . . . . . . . . . . . . . . . . . . . . . . . . . . . . Walls Destroyed . | . . . . . . . . . . . . . . . . . . . . . . . . . . . . . Machines Disabled . | . . . . . . . . . . . . . . . . . . . . . . . . . . . . . Actions | -11 -10 -10 -10 -9 -8 -7 -7 -7 -6 -6 -6 -6 -6 -6 -5 -5 -5 -5 -5 -4 -4 -4 -4 -3 -3 -2 -2 -1 --------- Run | Scr Mat Min Exi Min Mat Fac Was Fac Fac Was Fac Low Low Dat Pro Fac Upp Upp Zhi Pro Fac Arm Lab Res Tes Res Qua Acc Total 14227 | 49 411 326 239 497 1193 1165 69 768 439 400 1012 901 372 119 442 381 584 178 181 422 219 349 320 592 399 875 716 609 Wait 1520 | . 25 1 . 16 77 85 . 95 140 17 118 55 24 6 65 63 97 . . 19 13 108 . 150 11 266 53 16 Move 11434 | 39 301 320 237 453 953 959 69 642 289 371 841 792 330 100 358 281 479 168 156 402 184 215 264 385 342 543 577 384 Hop 55 | . . . . . . 17 . 2 . 1 9 . . . . 4 1 . . . 2 . 1 12 2 4 . . Pick Up 121 | 4 12 2 1 1 14 13 . 2 1 4 3 3 . 4 4 3 . . 4 . 1 4 9 3 7 4 10 8 Fast Attach 105 | 6 2 . . 1 18 4 . 5 1 . 4 4 2 . . 3 1 2 4 . 2 3 7 6 2 11 12 5 Attach 103 | . 2 . . . 3 9 . 6 1 1 1 4 2 . 2 4 . 1 . . 2 2 7 5 5 6 11 29 Detach 55 | . . . . . 2 3 . 5 . 1 3 3 2 . . 3 . 1 . . 1 1 3 1 1 3 3 19 Swap 81 | . 4 . . 2 22 7 . . 2 4 7 7 3 1 3 2 1 1 4 1 . 1 . 4 . . 1 4 Drop 171 | . 4 2 1 1 29 17 . 6 . 1 7 7 2 3 5 4 . 2 7 . . 7 8 6 8 11 23 10 Fire 417 | . 61 1 . 23 75 . . . . . . 9 5 . 2 14 4 2 . . 11 3 9 19 21 11 23 124 Melee 138 | . . . . . . 33 . 5 5 . 19 17 2 5 3 . 1 1 6 . 3 5 12 . . 16 1 4 Ram 5 | . . . . . . . . . . . . . . . . . . . . . . . . . . . . 5 Kick . | . . . . . . . . . . . . . . . . . . . . . . . . . . . . . Crush 3 | . . . . . . . . . . . . . . . . . . . . . . . . . . . 2 1 Escape Stasis 19 | . . . . . . 18 . . . . . . . . . . . . . . . . . 1 . . . . Rewire . | . . . . . . . . . . . . . . . . . . . . . . . . . . . . . Trap . | . . . . . . . . . . . . . . . . . . . . . . . . . . . . . Miscellaneous . | . . . . . . . . . . . . . . . . . . . . . . . . . . . . . Route ------- -11/Scrapyard -10/Materials (discovered 3 exits: [*Mat x2] / *Min) -10/Mines (discovered 2 exits: [*Mat] / *Exi) -10/Exiles -9/Mines (discovered 2 exits: *Mat x2) -8/Materials (discovered 3 exits: *Fac x3) -7/Factory (discovered 2 exits: *Fac / *Low) -7/Waste -7/Factory (discovered 5 exits: *Fac / Sto x2 / Low x2) -6/Factory -6/Waste -6/Factory (discovered 2 exits: *Low x2) -6/Lower Caves -6/Lower Caves -6/Data Miner -5/Proximity Caves -5/Factory (discovered 5 exits: *Fac / *Upp x2 / Ext x2) -5/Upper Caves -5/Upper Caves -5/Zhirov -4/Proximity Caves -4/Factory -4/Armory -4/Lab -3/Research (discovered 5 exits: Res x3 / *Tes x2) -3/Testing -2/Research (discovered 4 exits: *Acc x3 / *Qua) -2/Quarantine -1/Access History --------- Turn | Location | Event 12 | -11/Scrapyard | Discovered new exit (range 16) 59 | -11/Scrapyard | Entered Materials 304 | -10/Materials | Build established: Mutant 469 | -10/Materials | Discovered new exit (range 8) 559 | -10/Materials | Discovered new exit (range 10) 606 | -10/Materials | Discovered new exit (range 10) 681 | -10/Materials | Entered Mines 723 | -10/Mines | Discovered new exit (range 16) 786 | -10/Mines | Learned location of 1 exit from Materials 793 | -10/Mines | Learned 4 Materials zone layouts 811 | -10/Mines | Met a Derelict who couldn't figure out how to use a Trap Extractor 970 | -10/Mines | Deemed a non-threat by the Exiles lab entrance 970 | -10/Mines | Discovered new exit (range 5) 1008 | -10/Mines | Entered Exiles 1035 | -10/Exiles | Met 8R-AWN 1051 | -10/Exiles | Met EX-HEX 1085 | -10/Exiles | Met EX-BIN 1100 | -10/Exiles | Met EX-DEC 1104 | -10/Exiles | Learned location of Zion (-7) 1237 | -10/Exiles | Discovered new exit (range 12) 1247 | -10/Exiles | Entered Mines 1288 | -9/Mines | Met a Derelict testing a Signal Generator 1302 | -9/Mines | Found Signal Generator 1381 | -9/Mines | Discovered new exit (range 10) 1415 | -9/Mines | Learned Materials interactive machine intel 1578 | -9/Mines | Discovered new exit (range 7) 1607 | -9/Mines | Learned Materials emergency access door positions 1799 | -9/Mines | Entered Materials 1799 | -8/Materials | Accompanied by 2 allies 1799 | -8/Materials | Evolved 4 slots: Propulsion x1, Utility x3 1800 | -8/Materials | Identified exit to Factory 1803 | -8/Materials | Loaded intel: 18 interactive machine locations 1804 | -8/Materials | Led the pair of lost Derelicts to an unsafe place 2230 | -8/Materials | Build established: Scavenger-Mutant 2298 | -8/Materials | Discovered exit to Factory (range 15) 2960 | -8/Materials | Repaired Broken Lgt. Fission Core 3468 | -8/Materials | Entered Factory 3468 | -7/Factory | Evolved 2 slots: Utility x2 3520 | -7/Factory | Discovered new exit (range 15) 3525 | -7/Factory | Identified exit to Factory 3542 | -7/Factory | Discovered new exit (range 9) 3557 | -7/Factory | Identified exit to Lower Caves 3734 | -7/Factory | Build established: Hacker-Sprinter 3940 | -7/Factory | Fabricated Powered Armor (x2) 3993 | -7/Factory | Sucked down chute 3993 | -7/Factory | Entered Waste 3994 | -7/Waste | Met a frightened Derelict 3998 | -7/Waste | Spotted C-40 Crusher 4000 | -7/Waste | Spotted C-40 Crusher 4000 | -7/Waste | Spotted C-40 Crusher 4003 | -7/Waste | Spotted C-40 Crusher 4004 | -7/Waste | Spotted C-40 Crusher 4008 | -7/Waste | EMP discharged 4008 | -7/Waste | System corruption reached 10% 4011 | -7/Waste | Discovered new exit (range 10) 4013 | -7/Waste | Identified exit to Factory 4014 | -7/Waste | Entered Factory 4028 | -7/Factory | Identified exit to Storage 4160 | -7/Factory | Lost 3 parts (1p1n1u) 4186 | -7/Factory | Discovered exit to Factory (range 14) 4220 | -7/Factory | Local fabrication network quarantined 4282 | -7/Factory | Fabricated Lgt. Fission Core? 4343 | -7/Factory | Entered another Factory area 4343 | -6/Factory | Evolved 2 slots: Propulsion x1, Utility x1 4575 | -6/Factory | Fabricated Imp. VTOL Module? 4588 | -6/Factory | Spotted B-75 Beast 4589 | -6/Factory | Manually triggered Chute Trap 4589 | -6/Factory | Sucked down chute 4589 | -6/Factory | Entered Waste 4589 | -6/Waste | The area was eerily silent 4616 | -6/Waste | Discovered new exit (range 13) 4717 | -6/Waste | Identified exit to Factory 4719 | -6/Waste | Entered Factory 4761 | -6/Factory | Repaired Broken Impulse Thruster Array 4804 | -6/Factory | Identified exit to Lower Caves 5035 | -6/Factory | Repaired Broken Adv. Armor Integrity Analyzer? 5184 | -6/Factory | Entered Lower Caves 5210 | -6/Lower Caves | Learned location of 1 exit from Factory 5587 | -6/Lower Caves | Discovered new exit (range 8) 5589 | -6/Lower Caves | Identified exit to Lower Caves 5590 | -6/Lower Caves | Entered another Lower Caves area 5724 | -6/Lower Caves | Learned 8 Factory zone layouts 5745 | -6/Lower Caves | Discovered new exit (range 5) 5746 | -6/Lower Caves | Identified exit to Data Miner 5746 | -6/Lower Caves | Entered Data Miner 5746 | -6/Data Miner | Discovered new exit (range 6) 5753 | -6/Data Miner | Met Data Miner 5758 | -6/Data Miner | Learned location of Section 7 (-2) 5758 | -6/Data Miner | Acquired the access code to Warlord's prototype stash 5763 | -6/Data Miner | Received God Mode back door access code from Data Miner 5769 | -6/Data Miner | Destroyed Data Miner 5773 | -6/Data Miner | Found Prototype Hackware 5774 | -6/Data Miner | Found Prototype Hackware 5776 | -6/Data Miner | Found Prototype Hackware 5777 | -6/Data Miner | Interfaced with the Data Conduit 5777 | -6/Data Miner | Identified System Mapper 5806 | -6/Data Miner | Identified exit to Proximity Caves 5807 | -6/Data Miner | Entered Proximity Caves 5812 | -5/Proximity Caves | Learned 4 Factory zone layouts 6009 | -5/Proximity Caves | Discovered new exit (range 8) 6011 | -5/Proximity Caves | Identified exit to Factory 6012 | -5/Proximity Caves | Entered Factory 6012 | -5/Factory | Evolved 2 slots: Power x1, Propulsion x1 6013 | -5/Factory | Identified exit to Upper Caves 6014 | -5/Factory | Identified exit to Extension 6015 | -5/Factory | Loaded intel: 253 machine locations 6021 | -5/Factory | Discovered new exit (range 15) 6025 | -5/Factory | Identified exit to Factory 6143 | -5/Factory | Identified Ghost Barrier 6207 | -5/Factory | Entered Upper Caves 6343 | -5/Upper Caves | Learned Extension terminal intel 6394 | -5/Upper Caves | Discovered new exit (range 13) 6448 | -5/Upper Caves | Identified exit to Upper Caves 6457 | -5/Upper Caves | Entered another Upper Caves area 6517 | -5/Upper Caves | Discovered new exit (range 11) 6520 | -5/Upper Caves | Identified exit to Zhirov 6520 | -5/Upper Caves | Entered Zhirov 6520 | -5/Zhirov | Discovered new exit (range 3) 6526 | -5/Zhirov | Met Zhirov 6548 | -5/Zhirov | Found Alien Artifact 6548 | -5/Zhirov | Identified Integrated Dissipator 6548 | -5/Zhirov | Installed Integrated Dissipator, increased core heat dissipation (+20) 6584 | -5/Zhirov | Found Alien Artifact 6597 | -5/Zhirov | Identified exit to Proximity Caves 6599 | -5/Zhirov | Entered Proximity Caves 6735 | -4/Proximity Caves | Discovered exit to Factory (range 8) 6737 | -4/Proximity Caves | Entered Factory 6737 | -4/Factory | Evolved 2 slots: Utility x2 6737 | -4/Factory | Identified Quantum Router 6738 | -4/Factory | Loaded intel: 316 machine locations 6838 | -4/Factory | Discovered new exit (range 11) 6841 | -4/Factory | Identified exit to Armory 6841 | -4/Factory | Entered Armory 6842 | -4/Armory | Loaded intel: 98 machine locations 6892 | -4/Armory | Found Centrium Greatsword 7034 | -4/Armory | Fabricated Impulse Thruster Array (x1) 7044 | -4/Armory | Identified Transdimensional Reconstructor 7044 | -4/Armory | Warped through subspace to slip node 7044 | -4/Armory | Discovered new exit (range 1) 7044 | -4/Armory | Identified exit to Lab 7045 | -4/Armory | Entered Lab 7045 | -4/Lab | Discovered new exit (range 9) 7048 | -4/Lab | Identified exit to Research 7049 | -4/Lab | Hidden lab's door opened automatically 7049 | -4/Lab | Sensor layout match revealed 7049 | -4/Lab | Detected by scanners 7050 | -4/Lab | Gained access to the hidden lab's interior 7056 | -4/Lab | Confronted by A5 7078 | -4/Lab | Found Prototype Protection 7078 | -4/Lab | Identified Med. Regenerative Plating 7113 | -4/Lab | Found Prototype Special Weapon 7113 | -4/Lab | Identified Gui. Remote Datajack 7117 | -4/Lab | Destroyed A5 with decrypted code from the hidden lab 7125 | -4/Lab | Decrypted terminal 7125 | -4/Lab | Acquired modification code for an L2 power cell 7130 | -4/Lab | Found Prototype Energy Cannon 7130 | -4/Lab | Identified Potential Cannon 7133 | -4/Lab | Found Prototype Energy Gun 7133 | -4/Lab | Identified Hyp. EM Gauss Rifle 7136 | -4/Lab | Lost 6 parts (1p2n2u1w) 7136 | -4/Lab | Found Prototype Device 7136 | -4/Lab | Identified AEGIS Remote Shield 7140 | -4/Lab | Found Quantum Router 7150 | -4/Lab | Found Alien Artifact 7150 | -4/Lab | Identified Integrated Reactor 7150 | -4/Lab | Installed Integrated Reactor, increased core energy generation (+10) 7174 | -4/Lab | Decrypted terminal 7184 | -4/Lab | Found Alien Artifact 7206 | -4/Lab | Found Transdimensional Reconstructor 7215 | -4/Lab | Entered Research 7215 | -3/Research | Evolved 2 slots: Utility x2 7216 | -3/Research | Loaded intel: 116 machine locations 7227 | -3/Research | Spotted B-86 Titan 7229 | -3/Research | Found Exp. Thermal Shield 7285 | -3/Research | Fabricated Powered Armor (x2) 7365 | -3/Research | Build established: Wizard-Sprinter 7392 | -3/Research | Fabricated Exp. Transmission Jammer (x1) 7452 | -3/Research | Warped through subspace 7456 | -3/Research | Identified exit to Testing 7458 | -3/Research | Identified Core Regenerator 7458 | -3/Research | Used Core Regenerator, restored core integrity (+181) 7464 | -3/Research | Identified exit to Research 7541 | -3/Research | Lost 7 parts (1p2n4u) 7554 | -3/Research | Entered Testing 7555 | -3/Testing | Loaded intel: 62 machine locations 7602 | -3/Testing | Fabricated Powered Armor? 7620 | -3/Testing | Found System Mapper 7633 | -3/Testing | Found Prototype Ballistic Cannon 7633 | -3/Testing | Identified Perforator 7734 | -3/Testing | Discovered exit to Research (range 20) 7740 | -3/Testing | Entered Research 7740 | -2/Research | Evolved 2 slots: Propulsion x1, Utility x1 7741 | -2/Research | Loaded intel: 117 machine locations 7745 | -2/Research | Spotted B-90 Cyclops 7798 | -2/Research | Repaired Impulse Thruster Array 7975 | -2/Research | Fabricated Kinetic Spear (x1) 8021 | -2/Research | Identified exit to Access 8047 | -2/Research | Local fabrication network quarantined 8121 | -2/Research | Fabricated Adv. Reaction Control System? 8141 | -2/Research | Fabricated Quantum Capacitor (x2) 8278 | -2/Research | Discovered new exit (range 13) 8278 | -2/Research | Spotted B-90 Cyclops 8281 | -2/Research | Identified exit to Quarantine 8281 | -2/Research | Entered Quarantine 8282 | -2/Quarantine | Loaded intel: 64 machine locations 8299 | -2/Quarantine | Repaired Powered Armor 8357 | -2/Quarantine | Found Alien Artifact 8357 | -2/Quarantine | Identified Stasis Generator 8434 | -2/Quarantine | Intercept squad dispatched 8441 | -2/Quarantine | Spotted Tracker 8442 | -2/Quarantine | Spotted Tracker 8443 | -2/Quarantine | Destroyed Tracker 8443 | -2/Quarantine | Destroyed Tracker 8460 | -2/Quarantine | Spotted Combat Programmer 8461 | -2/Quarantine | Destroyed Combat Programmer 8461 | -2/Quarantine | Spotted Combat Programmer 8464 | -2/Quarantine | Destroyed Combat Programmer 8683 | -2/Quarantine | Found Alien Impact Weapon 8730 | -2/Quarantine | Build established: Wizard-Mutant 8781 | -2/Quarantine | First assault squad dispatched 8850 | -2/Quarantine | Entered Access 8850 | -1/Access | Evolved 2 slots: Utility x2 8851 | -1/Access | Loaded intel: 118 machine locations 8852 | -1/Access | Identified Core Stripper 9093 | -1/Access | Destroyed 11 combat bots 9100 | -1/Access | First assault squad dispatched 9517 | -1/Access | High security lockdown imminent 9575 | -1/Access | Destroyed 9 combat bots 9580 | -1/Access | Intercept squad dispatched 9597 | -1/Access | High security lockdown engaged 9603 | -1/Access | Spotted Tracker 9604 | -1/Access | Spotted Tracker 9619 | -1/Access | Destroyed Tracker 9631 | -1/Access | Released all parts (9) 9652 | -1/Access | Core integrity fell below 50% 9663 | -1/Access | Core integrity fell below 20% 9667 | -1/Access | System corruption reached 10% 9670 | -1/Access | Lost 12 parts (1p3n6u2w) 9680 | -1/Access | Destroyed by Tracker with Linked Autogun Last Messages --------------- 09626_ P-80 Master resets O-32 Director, system corruption cleaned. 09626_ Arm. Heavy Treads destroyed. 09628_ Linked Autogun destroyed. 09630_ Arm. Heavy Treads destroyed. 09631_ Coolant Network destroyed. 09631_ Released Lrg. Storage Unit. 09631_ Released Adv. Energy Well. 09631_ Released Exp. Optical Array. 09631_ Released Adv. Signal Interpreter. 09631_ Released Exp. Transmission Jammer. 09631_ Released Ghost Barrier. 09631_ Released Quantum Router. 09631_ Released Quantum Reactor. 09634_ Acquired AEGIS Remote Shield. 09638_ P-80 Master resets G-73 Enforcer, system corruption cleaned. 09639_ Quantum Capacitor destroyed. 09653_ Slammed into Tracker. 09655_ Slammed into G-73 Enforcer. 09656_ G-73 Enforcer knocked back. 09657_ Slammed into G-73 Enforcer. Map ----- +----------------------------------------------------+ | ???????? " " #????????????????????????? | | ????????? " " #????????????????????????? | | ????? ??? " " ??????????????????????????? | | ?????? ????# %!% ??????????????????????????????? | | ?????? ???# #?????????????????????????????????? | | ??????#+???# #?????????????????????????????????? | | ####### #### #?? ?????????????????????????????? | | #? "?????????????????????????????? | | ^ # """????????????????????????????? | | ###### # ??"""???????????????????????????? | | ?????+ "" +????"????????????????????????????? | | ?????# "" #?????????????????????????????????? | | ?????# ^Y ! #?????????????????????????????????? | | ?????# ""![ ##?????#######????????????????????? | | ?????#^ ^ "!!! ####### #????????????????????? | | ?????# ![!![= "" #????????????????????? | | ?????# !!!% T" #????????????????????? | | ?????# * #????????????????????? | | ?????# ! ####### #????????????????????? | | ?????# #####/###?????##s ##????????????????????? | | ?????# #?? ???????# p #?????????????????????? | | ?????# # ?????# #?????????????????????? | | ?????# # ????# #?????????????????????? | | ?????# # ??# #?????????????????????? | | ?????# # |#?# #?????????????????????? | | ?????# ##############?# @ #?????????????????????? | | ?????# #??????????????#"""#?????????????????????? | | ?????# #????????????????????????????????????????? | | ?????# #????????????????????????????????????????? | | ?????# #????????????????????????????????????????? | | ?????# #???????????????"""??????????????????????? | | ?????# #???????????????"""??????????????????????? | | ?????# #???????????????"""??????????????????????? | | ?????# #?????????????????????T??????????????????? | | ?????# #######??????????????"???????????????????? | | ?????# "??????????????"???????????????????? | | ?????# "??????????????????????????????????? | | ?????########T#??????????????????????????????????? | | ????????????????????????"????????????????????????? | | ????????????????????????"????????????????????????? | | ????????????????????????"????????????????????????? | | ????????????????????????"????????????????????????? | | ???????????????????????T"????????????????????????? | | ?????????????????????????????????????????????????? | | ?????????????????????????????????????????????????? | | ?????????????????????????????????????????????????? | | ?????????????????????????????????????????????????? | | ?????????????????????????????????????????????????? | | ?????????????????????????????????????????????????? | | ?????????????????????????????????????????????????? | +----------------------------------------------------+ Best States ------------- Heat Dissipation 162 Coolant Potential 120 Energy Generation 55 Energy Capacity 1400 Matter Stores 300 Matter Capacity 300 Sight Range 23 Robot Scan Range 20 Terrain Scan Density 10 Jamming Range 22 Power Amplification 20 Additional Mass Support 9 Armor Coverage 1250 Resistance: KI 25 Resistance: TH 30 Utility Shielding 66 Evasion (%) 64 Recoil Reduction 6 Offensive Hacking 40 Defensive Hacking 70 Item Schematics ----------------- Lgt. Fission Core | -8/Materials | Scanalyzed Adv. EMP Blaster | -8/Materials | Scanalyzed Imp. VTOL Module | -8/Materials | Scanalyzed Powered Armor | -7/Factory | Hacked Impulse Thruster Array | -6/Factory | Scanalyzed Combat Drone Bay | -6/Data Miner | Free Lgt. Regenerative Plating | -6/Data Miner | Free Exp. Flexi-carbon Leg | -6/Data Miner | Free Triangulator | -6/Data Miner | Free Exp. Targeting Computer | -6/Data Miner | Free Tactical Coordination Suite | -6/Data Miner | Free Exp. Transmission Jammer | -6/Data Miner | Free Exp. ECM Suite | -6/Data Miner | Free Mni. Smartbomb Launcher | -6/Data Miner | Free Kinetic Spear | -6/Data Miner | Free Adv. Reaction Control System | -3/Research | Hacked Quantum Capacitor | -2/Research | Hacked Exp. Core Analyzer | -2/Research | Hacked Lrg. Storage Unit | -2/Research | Hacked Exp. Utility Shielding | -2/Quarantine | Hacked Biometal Heavy Treads | -2/Quarantine | Hacked Robot Schematics ------------------ S-27 Virus | -6/Data Miner | Free G-50 Soldier | -6/Data Miner | Free G-67 Veteran | -6/Data Miner | Free L-41 Fighter | -6/Data Miner | Free X-72 Disruptor | -6/Data Miner | Free I-36 Angel | -6/Data Miner | Free I-47 Archangel | -6/Data Miner | Free Fabricated ------------ Powered Armor | x2 | -7/Factory Lgt. Fission Core | x2 | -7/Factory Imp. VTOL Module | x1 | -6/Factory Impulse Thruster Array | x1 | -4/Armory Powered Armor | x2 | -3/Research Exp. Transmission Jammer | x1 | -3/Research Powered Armor | x2 | -3/Testing Kinetic Spear | x1 | -2/Research Adv. Reaction Control System | x1 | -2/Research Quantum Capacitor | x2 | -2/Research Alien Tech Used ----------------- Integrated Dissipator Transdimensional Reconstructor Integrated Reactor Core Regenerator Stasis Generator Core Stripper Achievements -------------- Decrypted! Challenges ------------ None Game ------ Seed ControlLobotomyReplicator Manual? 0 Play Time 04:27:59 Cumulative 415.1 hours Start 2020.12.03 @ 10:43:49 End 2020.12.03 @ 18:22:57 Sessions 5 Manual Loads 0 Difficulty Rogue Special Mode None Game No. 304 Rogue 304 Adventurer 0 Explorer 0 Win Type - Total 12 Types 11/0/0/1/0/0/0/0/0 Lore% 83 Gallery% 80 Achievement% 65 Wizard Run 0 Options --------- ASCII 0 Keyboard 0 Movement Vi Keybinds 0 Fullscreen 0 Font 16/SmallcapsGlow Map View 76x50 Tactical HUD 1 Map Filters NONE Filters NONE Steam 1 RUN: 970ea583-9d33-4216-9ba0-e26ff79e219e